fUST/lending_fUST_20240813
["ID","MTS","AMOUNT","RATE_DAILY","PERIOD"]
[334736800,1723521039203,-834.08,0.00013698,2]
[334736803,1723521039212,-500.0,0.00013698,2]
[334736805,1723521039222,-414.87085298,0.00013698,2]
[334736807,1723521039232,-500.0,0.00013698,2]
[334736808,1723521039242,-500.0,0.00013698,2]
[334736809,1723521039251,-815.38,0.00013698,2]
[334736810,1723521039260,-500.0,0.00013698,2]
[334736812,1723521039270,-500.0,0.00013698,2]
[334736814,1723521039280,-686.75,0.00013698,2]
[334736815,1723521039291,-639.4133917,0.00013698,2]
[334736816,1723521039302,-187.46442909,0.00013698,2]
[334736817,1723521039317,-500.0,0.00013698,2]
[334736818,1723521039331,-500.0,0.00013698,2]
[334736820,1723521039341,-1060.39,0.00013698,2]
[334736822,1723521039350,-500.0,0.00013698,2]
[334736824,1723521039360,-500.0,0.00013698,2]
[334736826,1723521039370,-811.83,0.00013698,2]
[334736828,1723521039380,-738.31,0.00013698,2]
[334736829,1723521039390,-500.0,0.00013698,2]
[334736830,1723521039400,-1718.72,0.00013698,2]
[334736832,1723521039409,-1287.22,0.00013698,2]
[334736834,1723521039420,-500.0,0.00013698,2]
[334736836,1723521039429,-500.0,0.00013698,2]
[334736837,1723521039439,-500.0,0.00013698,2]
[334736838,1723521039449,-500.0,0.00013698,2]
[334736839,1723521039459,-500.0,0.00013698,2]
[334736840,1723521039468,-500.0,0.00013698,2]
[334736841,1723521039478,-500.0,0.00013698,2]
[334736842,1723521039488,-5408.74,0.00013698,2]
[334736843,1723521039498,-500.0,0.00013698,2]
[334736844,1723521039508,-934.91,0.00013698,2]
[334736845,1723521039517,-3398.8,0.00013698,2]
[334736847,1723521039527,-239.95595374,0.00013698,2]
[334736849,1723521039601,-633.09404626,0.00013698,2]
[334736850,1723521039610,-500.0,0.00013698,2]
[334736851,1723521039620,-509.68,0.00013698,2]
[334736852,1723521039632,-221.53463681,0.00013698,2]
[334736853,1723521039642,-1143.73,0.00013698,2]
[334736854,1723521039652,-500.0,0.00013698,2]
[334736855,1723521039661,-3232.19,0.00013698,2]
[334736856,1723521039671,-500.0,0.00013698,2]
[334736857,1723521039681,-1056.74,0.00013698,2]
[334736858,1723521039691,-500.0,0.00013698,2]
[334736859,1723521039700,-998.3,0.00013698,2]
[334736861,1723521039710,-500.0,0.00013698,2]
[334736863,1723521039720,-500.0,0.00013698,2]
[334736864,1723521039729,-4502.61,0.00013698,2]
[334736865,1723521039739,-671.24,0.00013698,2]
[334736866,1723521039750,-1163.08,0.00013698,2]
[334736867,1723521039761,-537.85,0.00013698,2]
[334736868,1723521039771,-1178.01,0.00013698,2]
[334736869,1723521039780,-1195.89,0.00013698,2]
[334736870,1723521039790,-500.0,0.00013698,2]
[334736871,1723521039800,-500.0,0.00013698,2]
[334736872,1723521039810,-500.0,0.00013698,2]
[334736873,1723521039822,-500.0,0.00013698,2]
[334736874,1723521039832,-875.40131693,0.00013698,2]
[334736875,1723521039844,-185.24868307,0.00013698,2]
[334736876,1723521039857,-125.16132493,0.00013698,2]
[334736915,1723521042708,-155.13366212,9.999e-05,2]
[334736917,1723521042719,-407.99,0.00010959,2]
[334736920,1723521042729,-59.51236382,0.00013698,2]
[334736923,1723521042871,-500.0,0.00013698,2]
[334736924,1723521042881,-500.0,0.00013698,2]
[334736925,1723521042891,-818.46,0.00013698,2]
[334736926,1723521042901,-500.0,0.00013698,2]
[334736927,1723521042911,-500.0,0.00013698,2]
[334736928,1723521042920,-541.28,0.00013698,2]
[334736929,1723521042929,-599.43,0.00013698,2]
[334736930,1723521042939,-500.0,0.00013698,2]
[334736931,1723521042949,-668.16,0.00013698,2]
[334736932,1723521042958,-500.0,0.00013698,2]
[334736933,1723521042968,-500.0,0.00013698,2]
[334736934,1723521042978,-1623.08,0.00013698,2]
[334736935,1723521042988,-500.0,0.00013698,2]
[334736936,1723521042997,-514.99872219,0.00013698,2]
[334736937,1723521043006,-717.57,0.00013698,2]
[334736938,1723521043015,-500.0,0.00013698,2]
[334736939,1723521043025,-500.0,0.00013698,2]
[334736940,1723521043034,-3416.72,0.00013698,2]
[334736941,1723521043044,-754.97,0.00013698,2]
[334736942,1723521043053,-500.0,0.00013698,2]
[334736943,1723521043063,-500.0,0.00013698,2]
[334736944,1723521043074,-566.93,0.00013698,2]
[334736945,1723521043083,-1513.32,0.00013698,2]
[334736946,1723521043093,-500.0,0.00013698,2]
[334736947,1723521043102,-505.9154111,0.00013698,2]
[334736948,1723521043112,-1204.19,0.00013698,2]
[334736949,1723521043122,-500.0,0.00013698,2]
[334736950,1723521043132,-500.0,0.00013698,2]
[334736951,1723521043142,-1182.65,0.00013698,2]
[334736952,1723521043152,-500.0,0.00013698,2]
[334736953,1723521043161,-607.43,0.00013698,2]
[334736954,1723521043171,-500.0,0.00013698,2]
[334736955,1723521043181,-1302.37,0.00013698,2]
[334736956,1723521043191,-500.0,0.00013698,2]
[334736957,1723521043200,-674.49,0.00013698,2]
[334736958,1723521043209,-1184.39,0.00013698,2]
[334736959,1723521043218,-1375.15,0.00013698,2]
[334736960,1723521043226,-500.0,0.00013698,2]
[334736961,1723521043236,-1211.13,0.00013698,2]
[334736962,1723521043244,-500.0,0.00013698,2]
[334736963,1723521043254,-755.38,0.00013698,2]
[334736964,1723521043263,-5110.87,0.00013698,2]
[334736965,1723521043273,-732.31,0.00013698,2]
[334736966,1723521043282,-546.5,0.00013698,2]
[334736967,1723521043292,-500.0,0.00013698,2]
[334736968,1723521043301,-500.0,0.00013698,2]
[334736969,1723521043310,-500.0,0.00013698,2]
[334736970,1723521043320,-500.0,0.00013698,2]
[334736971,1723521043330,-500.0,0.00013698,2]
[334736972,1723521043339,-625.38,0.00013698,2]
[334736973,1723521043349,-500.0,0.00013698,2]
[334736974,1723521043358,-559.62,0.00013698,2]
[334736975,1723521043368,-323.33109887,0.00013698,2]
[334736976,1723521043378,-533.47,0.00013698,2]
[334736977,1723521043387,-532.56160692,0.00013698,2]
[334736978,1723521043396,-500.0,0.00013698,2]
[334736979,1723521043405,-988.07,0.00013698,2]
[334736980,1723521043414,-502.8470233,0.00013698,2]
[334736981,1723521043424,-500.0,0.00013698,2]
[334736982,1723521043434,-500.0,0.00013698,2]
[334736983,1723521043443,-500.0,0.00013698,2]
[334736984,1723521043452,-500.0,0.00013698,2]
[334736985,1723521043462,-5247.46,0.00013698,2]
[334736986,1723521043471,-827.0,0.00013698,2]
[334736987,1723521043481,-1912.66,0.00013698,2]
[334736988,1723521043491,-1257.0,0.00013698,2]
[334736989,1723521043500,-500.0,0.00013698,2]
[334736990,1723521043509,-1944.3,0.00013698,2]
[334736991,1723521043518,-944.38,0.00013698,2]
[334736992,1723521043528,-500.0,0.00013698,2]
[334736993,1723521043538,-2854.24,0.00013698,2]
[334736994,1723521043547,-595.62,0.00013698,2]
[334736995,1723521043556,-500.0,0.00013698,2]
[334736996,1723521043568,-500.0,0.00013698,2]
[334736997,1723521043577,-500.0,0.00013698,2]
[334736998,1723521043586,-1070.54,0.00013698,2]
[334736999,1723521043596,-625.87,0.00013698,2]
[334737000,1723521043605,-500.0,0.00013698,2]
[334737001,1723521043614,-500.0,0.00013698,2]
[334737002,1723521043624,-539.85908622,0.00013698,2]
[334737003,1723521043633,-500.0,0.00013698,2]
[334737004,1723521043643,-939.6005489,0.00013699,2]
[334737005,1723521043652,-481.26491,0.00013699,2]
[334737006,1723521043663,-302.9332497,0.00013699,2]
[334737007,1723521043672,-500.0,0.00013699,2]
[334737008,1723521043682,-500.0,0.00013699,2]
[334737009,1723521043691,-549.30953048,0.00013699,2]
[334737010,1723521043701,-500.0,0.00013699,2]
[334737011,1723521043711,-500.0,0.00013699,2]
[334737013,1723521043720,-500.0,0.00013699,2]
[334737015,1723521043730,-486.12331603,0.00013699,2]
[334737017,1723521043739,-500.0,0.00013699,2]
[334737019,1723521043749,-500.0,0.00013699,2]
[334737021,1723521043759,-500.0,0.00013699,2]
[334737023,1723521043769,-500.0,0.00013699,2]
[334737025,1723521043779,-500.0,0.00013699,2]
[334737027,1723521043788,-500.0,0.00013699,2]
[334737028,1723521043797,-500.0,0.00013699,2]
[334737029,1723521043806,-500.0,0.00013699,2]
[334737030,1723521043815,-500.0,0.00013699,2]
[334737031,1723521043826,-500.0,0.00013699,2]
[334737032,1723521043836,-500.0,0.00013699,2]
[334737033,1723521043845,-500.0,0.00013699,2]
[334737034,1723521043856,-500.0,0.00013699,2]
[334737035,1723521043867,-355.57230936,0.00013699,2]
[334737036,1723521043876,-500.0,0.00013699,2]
[334737037,1723521043885,-387.44535895,0.00013699,2]
[334737038,1723521043895,-194.79981105,0.00013699,2]
[334737039,1723521043906,-150.112234,0.000137,2]
[334737040,1723521043915,-830.64980254,0.00013726,2]
[334737041,1723521043924,-830.64980254,0.00013799,2]
[334737042,1723521043936,-2080.66689026,0.00013799,2]
[334737043,1723521043946,-830.64980254,0.00013872,2]
[334737044,1723521043955,-542.67,0.00013972,2]
[334737045,1723521043964,-500.0,0.00013972,2]
[334737046,1723521043973,-182.66735015,0.00013972,2]
[334737047,1723521043983,-500.0,0.00013972,2]
[334737048,1723521043992,-500.0,0.00013972,2]
[334737049,1723521044001,-500.0,0.00013972,2]
[334737050,1723521044011,-500.0,0.00013972,2]
[334737051,1723521044021,-617.5,0.00013972,2]
[334737052,1723521044030,-500.0,0.00013972,2]
[334737053,1723521044039,-376.03971067,0.00013972,2]
[334737055,1723521044047,-500.0,0.00013972,2]
[334737057,1723521044057,-500.0,0.00013972,2]
[334737058,1723521044066,-500.0,0.00013972,2]
[334737059,1723521044079,-500.0,0.00013972,2]
[334737060,1723521044088,-502.73182274,0.00013972,2]
[334737061,1723521044098,-502.56,0.00013972,2]
[334737062,1723521044107,-708.42,0.00013972,2]
[334737063,1723521044116,-233.62421292,0.00013972,2]
[334737064,1723521044125,-500.0,0.00013972,2]
[334737065,1723521044134,-500.0,0.00013972,2]
[334737066,1723521044143,-500.0,0.00013972,2]
[334737067,1723521044153,-500.0,0.00013972,2]
[334737068,1723521044162,-500.0,0.00013972,2]
[334737069,1723521044171,-500.0,0.00013972,2]
[334737070,1723521044181,-500.0,0.00013972,2]
[334737071,1723521044190,-500.0,0.00013972,2]
[334737072,1723521044199,-500.0,0.00013972,2]
[334737073,1723521044208,-500.0,0.00013972,2]
[334737074,1723521044218,-500.0,0.00013972,2]
[334737075,1723521044227,-357.60710396,0.00013972,2]
[334737076,1723521044236,-500.0,0.00013972,2]
[334737077,1723521044245,-500.0,0.00013972,2]
[334737078,1723521044255,-500.0,0.00013972,2]
[334737079,1723521044264,-486.45266825,0.00013972,2]
[334737080,1723521044274,-733.63,0.00013972,2]
[334737081,1723521044283,-500.0,0.00013972,2]
[334737082,1723521044293,-500.0,0.00013972,2]
[334737083,1723521044302,-500.0,0.00013972,2]
[334737084,1723521044312,-500.0,0.00013972,2]
[334737085,1723521044321,-598.5,0.00013972,2]
[334737086,1723521044331,-500.0,0.00013972,2]
[334737087,1723521044339,-500.0,0.00013972,2]
[334737088,1723521044349,-500.0,0.00013972,2]
[334737089,1723521044358,-500.0,0.00013972,2]
[334737090,1723521044367,-500.0,0.00013972,2]
[334737091,1723521044376,-500.0,0.00013972,2]
[334737092,1723521044386,-500.0,0.00013972,2]
[334737093,1723521044395,-500.0,0.00013972,2]
[334737094,1723521044404,-532.08,0.00013972,2]
[334737095,1723521044414,-500.0,0.00013972,2]
[334737096,1723521044423,-834.08,0.00013972,2]
[334737097,1723521044432,-500.0,0.00013972,2]
[334737098,1723521044442,-500.0,0.00013972,2]
[334737099,1723521044451,-607.99166983,0.00013972,2]
[334737100,1723521044461,-815.38,0.00013972,2]
[334737101,1723521044471,-547.17375942,0.00013972,2]
[334737102,1723521044481,-686.75,0.00013972,2]
[334737103,1723521044490,-500.0,0.00013972,2]
[334737104,1723521044499,-500.0,0.00013972,2]
[334737105,1723521044508,-1060.39,0.00013972,2]
[334737106,1723521044518,-500.0,0.00013972,2]
[334737107,1723521044527,-500.0,0.00013972,2]
[334737108,1723521044538,-811.83,0.00013972,2]
[334737109,1723521044550,-738.31,0.00013972,2]
[334737110,1723521044560,-1718.72,0.00013972,2]
[334737111,1723521044571,-1287.22,0.00013972,2]
[334737112,1723521044580,-500.0,0.00013972,2]
[334737113,1723521044589,-500.0,0.00013972,2]
[334737114,1723521044598,-500.0,0.00013972,2]
[334737115,1723521044607,-500.0,0.00013972,2]
[334737116,1723521044616,-500.0,0.00013972,2]
[334737117,1723521044625,-5408.74,0.00013972,2]
[334737118,1723521044634,-500.0,0.00013972,2]
[334737119,1723521044644,-934.91,0.00013972,2]
[334737120,1723521044653,-3398.8,0.00013972,2]
[334737121,1723521044662,-873.05,0.00013972,2]
[334737122,1723521044672,-500.0,0.00013972,2]
[334737123,1723521044681,-509.68,0.00013972,2]
[334737124,1723521044691,-1143.73,0.00013972,2]
[334737125,1723521044703,-500.0,0.00013972,2]
[334737126,1723521044714,-3232.19,0.00013972,2]
[334737127,1723521044723,-500.0,0.00013972,2]
[334737128,1723521044733,-1056.74,0.00013972,2]
[334737129,1723521044742,-998.3,0.00013972,2]
[334737130,1723521044751,-507.57971785,0.00013972,2]
[334737131,1723521044761,-500.0,0.00013972,2]
[334737132,1723521044771,-4502.61,0.00013972,2]
[334737133,1723521044782,-671.24,0.00013972,2]
[334737134,1723521044791,-1163.08,0.00013972,2]
[334737135,1723521044800,-537.85,0.00013972,2]
[334737136,1723521044810,-1178.01,0.00013972,2]
[334737137,1723521044820,-1195.89,0.00013972,2]
[334737138,1723521044830,-510.18680554,0.00013972,2]
[334737139,1723521044841,-500.0,0.00013972,2]
[334737140,1723521044850,-500.0,0.00013972,2]
[334737141,1723521044864,-1060.65,0.00013972,2]
[334737142,1723521044874,-500.0,0.00013972,2]
[334737143,1723521044883,-500.0,0.00013972,2]
[334737144,1723521044893,-507.11683935,0.00013972,2]
[334737145,1723521044904,-508.35504889,0.00013972,2]
[334737146,1723521044913,-818.46,0.00013972,2]
[334737147,1723521044923,-541.28,0.00013972,2]
[334737148,1723521044932,-599.43,0.00013972,2]
[334737149,1723521044944,-500.0,0.00013972,2]
[334737150,1723521044954,-668.16,0.00013972,2]
[334737151,1723521044964,-500.0,0.00013972,2]
[334737152,1723521044974,-500.0,0.00013972,2]
[334737153,1723521044984,-1623.08,0.00013972,2]
[334737154,1723521044994,-500.0,0.00013972,2]
[334737155,1723521045004,-717.57,0.00013972,2]
[334737156,1723521045013,-257.1212263,0.00013972,2]
[334737157,1723521045023,-500.0,0.00013972,2]
[334737158,1723521045033,-3416.72,0.00013972,2]
[334737159,1723521045042,-754.97,0.00013972,2]
[334737160,1723521045052,-500.0,0.00013972,2]
[334737161,1723521045062,-537.09112232,0.00013972,2]
[334737162,1723521045072,-566.93,0.00013972,2]
[334737163,1723521045081,-1513.32,0.00013972,2]
[334737164,1723521045091,-500.0,0.00013972,2]
[334737165,1723521045100,-1204.19,0.00013972,2]
[334737166,1723521045110,-500.0,0.00013972,2]
[334737167,1723521045119,-1182.65,0.00013972,2]
[334737168,1723521045128,-500.0,0.00013972,2]
[334737169,1723521045138,-607.43,0.00013972,2]
[334737170,1723521045147,-500.0,0.00013972,2]
[334737171,1723521045156,-1302.37,0.00013972,2]
[334737172,1723521045166,-500.0,0.00013972,2]
[334737173,1723521045176,-674.49,0.00013972,2]
[334737174,1723521045186,-1184.39,0.00013972,2]
[334737175,1723521045195,-1375.15,0.00013972,2]
[334737176,1723521045204,-500.0,0.00013972,2]
[334737177,1723521045214,-1211.13,0.00013972,2]
[334737178,1723521045223,-500.0,0.00013972,2]
[334737179,1723521045232,-755.38,0.00013972,2]
[334737180,1723521045241,-5110.87,0.00013972,2]
[334737181,1723521045251,-546.5,0.00013972,2]
[334737182,1723521045261,-732.31,0.00013972,2]
[334737183,1723521045270,-500.0,0.00013972,2]
[334737185,1723521045280,-324.31541479,0.00013972,2]
[334737187,1723521045289,-500.0,0.00013972,2]
[334737189,1723521045299,-500.0,0.00013972,2]
[334737190,1723521045308,-625.38,0.00013972,2]
[334737191,1723521045317,-500.0,0.00013972,2]
[334737192,1723521045328,-559.62,0.00013972,2]
[334737193,1723521045337,-533.47,0.00013972,2]
[334737194,1723521045347,-500.0,0.00013972,2]
[334737195,1723521045356,-988.07,0.00013972,2]
[334737197,1723521045365,-500.0,0.00013972,2]
[334737199,1723521045374,-359.4979327,0.00013972,2]
[334737201,1723521045383,-500.0,0.00013972,2]
[334737203,1723521045392,-160.41819334,0.00013972,2]
[334737205,1723521045401,-5247.46,0.00013972,2]
[334737208,1723521045411,-827.0,0.00013972,2]
[334737210,1723521045419,-1912.66,0.00013972,2]
[334737213,1723521045430,-1257.0,0.00013972,2]
[334737215,1723521045439,-500.0,0.00013972,2]
[334737217,1723521045451,-1944.3,0.00013972,2]
[334737219,1723521045461,-944.38,0.00013972,2]
[334737221,1723521045471,-2854.24,0.00013972,2]
[334737223,1723521045480,-595.62,0.00013972,2]
[334737225,1723521045492,-500.0,0.00013972,2]
[334737227,1723521045503,-500.0,0.00013972,2]
[334737229,1723521045512,-1070.54,0.00013972,2]
[334737231,1723521045522,-625.87,0.00013972,2]
[334737233,1723521045533,-500.0,0.00013972,2]
[334737235,1723521045544,-500.0,0.00013972,2]
[334737237,1723521045553,-200.0,0.00013973,2]
[334737239,1723521045562,-155.25804822,0.00014,2]
[334737241,1723521045573,-200.0,0.0001423,2]
[334737243,1723521045583,-200.0,0.0001423,2]
[334737245,1723521045593,-200.07576826,0.0001423,2]
[334737247,1723521045602,-200.0,0.0001423,2]
[334737248,1723521045612,-200.0,0.0001423,2]
[334737249,1723521045622,-542.67,0.00014246,2]
[334737250,1723521045632,-500.0,0.00014246,2]
[334737251,1723521045641,-500.0,0.00014246,2]
[334737252,1723521045651,-500.0,0.00014246,2]
[334737253,1723521045662,-500.0,0.00014246,2]
[334737254,1723521045672,-617.5,0.00014246,2]
[334737255,1723521045682,-623.55028596,0.00014246,2]
[334737256,1723521045692,-500.0,0.00014246,2]
[334737257,1723521045702,-500.0,0.00014246,2]
[334737258,1723521045712,-502.56,0.00014246,2]
[334737259,1723521045722,-708.42,0.00014246,2]
[334737260,1723521045732,-500.0,0.00014246,2]
[334737261,1723521045742,-500.0,0.00014246,2]
[334737262,1723521045752,-500.0,0.00014246,2]
[334737263,1723521045762,-500.0,0.00014246,2]
[334737264,1723521045772,-500.0,0.00014246,2]
[334737265,1723521045781,-500.0,0.00014246,2]
[334737266,1723521045791,-500.0,0.00014246,2]
[334737267,1723521045801,-500.0,0.00014246,2]
[334737268,1723521045811,-500.0,0.00014246,2]
[334737269,1723521045823,-500.0,0.00014246,2]
[334737270,1723521045834,-500.0,0.00014246,2]
[334737272,1723521045844,-500.0,0.00014246,2]
[334737274,1723521045855,-733.63,0.00014246,2]
[334737275,1723521045868,-500.0,0.00014246,2]
[334737276,1723521045877,-500.0,0.00014246,2]
[334737277,1723521045889,-500.0,0.00014246,2]
[334737278,1723521045899,-598.5,0.00014246,2]
[334737279,1723521045910,-500.0,0.00014246,2]
[334737280,1723521045920,-500.0,0.00014246,2]
[334737281,1723521045931,-500.0,0.00014246,2]
[334737282,1723521045941,-500.0,0.00014246,2]
[334737283,1723521045951,-500.0,0.00014246,2]
[334737284,1723521045961,-500.0,0.00014246,2]
[334737285,1723521045971,-500.0,0.00014246,2]
[334737286,1723521045981,-500.0,0.00014246,2]
[334737287,1723521045991,-532.08,0.00014246,2]
[334737288,1723521046001,-500.0,0.00014246,2]
[334737289,1723521046010,-834.08,0.00014246,2]
[334737290,1723521046021,-500.0,0.00014246,2]
[334737291,1723521046030,-500.0,0.00014246,2]
[334737292,1723521046040,-815.38,0.00014246,2]
[334737293,1723521046050,-686.75,0.00014246,2]
[334737294,1723521046060,-500.0,0.00014246,2]
[334737295,1723521046070,-500.0,0.00014246,2]
[334737296,1723521046079,-1060.39,0.00014246,2]
[334737297,1723521046089,-500.0,0.00014246,2]
[334737298,1723521046099,-500.0,0.00014246,2]
[334737299,1723521046237,-811.83,0.00014246,2]
[334737300,1723521046246,-738.31,0.00014246,2]
[334737301,1723521046256,-1718.72,0.00014246,2]
[334737302,1723521046267,-1287.22,0.00014246,2]
[334737303,1723521046277,-503.47971931,0.00014246,2]
[334737304,1723521046288,-500.0,0.00014246,2]
[334737305,1723521046298,-500.0,0.00014246,2]
[334737306,1723521046308,-500.0,0.00014246,2]
[334737307,1723521046321,-500.0,0.00014246,2]
[334737308,1723521046330,-5408.74,0.00014246,2]
[334737309,1723521046339,-500.0,0.00014246,2]
[334737310,1723521046351,-934.91,0.00014246,2]
[334737311,1723521046360,-3398.8,0.00014246,2]
[334737312,1723521046370,-873.05,0.00014246,2]
[334737313,1723521046381,-500.0,0.00014246,2]
[334737314,1723521046392,-509.68,0.00014246,2]
[334737315,1723521046404,-1143.73,0.00014246,2]
[334737316,1723521046415,-500.0,0.00014246,2]
[334737317,1723521046424,-3232.19,0.00014246,2]
[334737318,1723521046435,-1056.74,0.00014246,2]
[334737319,1723521046445,-998.3,0.00014246,2]
[334737320,1723521046454,-500.0,0.00014246,2]
[334737321,1723521046464,-500.0,0.00014246,2]
[334737322,1723521046473,-671.24,0.00014246,2]
[334737323,1723521046483,-4502.61,0.00014246,2]
[334737324,1723521046493,-1163.08,0.00014246,2]
[334737325,1723521046502,-537.85,0.00014246,2]
[334737326,1723521046513,-1178.01,0.00014246,2]
[334737327,1723521046523,-1195.89,0.00014246,2]
[334737328,1723521046533,-500.0,0.00014246,2]
[334737329,1723521046543,-1060.65,0.00014246,2]
[334737330,1723521046552,-500.0,0.00014246,2]
[334737331,1723521046562,-500.0,0.00014246,2]
[334737332,1723521046571,-818.46,0.00014246,2]
[334737333,1723521046581,-541.28,0.00014246,2]
[334737334,1723521046590,-599.43,0.00014246,2]
[334737335,1723521046600,-668.16,0.00014246,2]
[334737336,1723521046609,-500.0,0.00014246,2]
[334737337,1723521046619,-500.0,0.00014246,2]
[334737338,1723521046629,-1623.08,0.00014246,2]
[334737339,1723521046641,-500.0,0.00014246,2]
[334737340,1723521046652,-500.0,0.00014246,2]
[334737341,1723521046663,-717.57,0.00014246,2]
[334737342,1723521046673,-500.0,0.00014246,2]
[334737343,1723521046682,-3416.72,0.00014246,2]
[334737344,1723521046692,-754.97,0.00014246,2]
[334737345,1723521046702,-500.0,0.00014246,2]
[334737346,1723521046712,-566.93,0.00014246,2]
[334737347,1723521046723,-1513.32,0.00014246,2]
[334737348,1723521046735,-500.0,0.00014246,2]
[334737349,1723521046745,-1204.19,0.00014246,2]
[334737350,1723521046755,-500.0,0.00014246,2]
[334737351,1723521046764,-1182.65,0.00014246,2]
[334737352,1723521046774,-607.43,0.00014246,2]
[334737353,1723521046783,-500.0,0.00014246,2]
[334737354,1723521046793,-500.0,0.00014246,2]
[334737355,1723521046802,-1302.37,0.00014246,2]
[334737356,1723521046813,-500.0,0.00014246,2]
[334737357,1723521046823,-674.49,0.00014246,2]
[334737358,1723521046832,-1184.39,0.00014246,2]
[334737359,1723521046841,-1375.15,0.00014246,2]
[334737360,1723521046851,-500.0,0.00014246,2]
[334737361,1723521046863,-1211.13,0.00014246,2]
[334737362,1723521046873,-755.38,0.00014246,2]
[334737363,1723521046884,-5110.87,0.00014246,2]
[334737364,1723521046893,-546.5,0.00014246,2]
[334737365,1723521046904,-732.31,0.00014246,2]
[334737366,1723521046913,-500.0,0.00014246,2]
[334737367,1723521046922,-500.0,0.00014246,2]
[334737368,1723521046932,-500.0,0.00014246,2]
[334737369,1723521046944,-625.38,0.00014246,2]
[334737370,1723521046953,-500.0,0.00014246,2]
[334737371,1723521046962,-559.62,0.00014246,2]
[334737372,1723521046972,-533.47,0.00014246,2]
[334737373,1723521046981,-532.94554107,0.00014246,2]
[334737374,1723521046990,-988.07,0.00014246,2]
[334737375,1723521046999,-500.0,0.00014246,2]
[334737376,1723521047008,-500.0,0.00014246,2]
[334737377,1723521047020,-5247.46,0.00014246,2]
[334737378,1723521047032,-827.0,0.00014246,2]
[334737379,1723521047043,-1912.66,0.00014246,2]
[334737380,1723521047054,-1257.0,0.00014246,2]
[334737381,1723521047064,-500.0,0.00014246,2]
[334737382,1723521047073,-1944.3,0.00014246,2]
[334737383,1723521047083,-944.38,0.00014246,2]
[334737384,1723521047092,-2854.24,0.00014246,2]
[334737385,1723521047102,-595.62,0.00014246,2]
[334737386,1723521047111,-500.0,0.00014246,2]
[334737387,1723521047120,-500.0,0.00014246,2]
[334737388,1723521047129,-1070.54,0.00014246,2]
[334737389,1723521047138,-625.87,0.00014246,2]
[334737390,1723521047147,-500.0,0.00014246,2]
[334737391,1723521047157,-179.66511161,0.00014246,2]
[334737392,1723521047166,-255.893244,0.00014247,2]
[334737393,1723521047177,-164.406308,0.00014247,2]
[334737394,1723521047186,-658.9597,0.00014247,2]
[334737395,1723521047196,-307.226752,0.00014247,2]
[334737396,1723521047205,-587.0,0.00014519,2]
[334737397,1723521047216,-542.67,0.0001452,2]
[334737398,1723521047225,-500.0,0.0001452,2]
[334737399,1723521047234,-500.0,0.0001452,2]
[334737400,1723521047244,-500.0,0.0001452,2]
[334737401,1723521047253,-500.0,0.0001452,2]
[334737402,1723521047263,-617.5,0.0001452,2]